[Event "44th Chess Olympiad Open 2022"]
[Site "Chennai"]
[Date "2022.07.30"]
[Round "2.50"]
[White "Rafael Chirinza"]
[Black "Pleasants, Allan J"]
[Result "1/2-1/2"]
[ECO "A48"]
[WhiteElo "1725"]
[BlackElo "2024"]
[Annotator "TA"]
[PlyCount "112"]
[EventDate "2022.07.29"]
[EventType "team-tourn"]
[EventCountry "IND"]
[SourceTitle "playchess.com"]
[Source "ChessBase"]
[SourceQuality "1"]
[WhiteTeam "Mozambique"]
[BlackTeam "Wales"]
[WhiteTeamCountry "MOZ"]
[BlackTeamCountry "WLS"]
[TimeControl "40/5400+30:1800+30"]

{[%evp 13,112,0,0,0,0,0,0,0,0,0,0,0,0,0,4,0,20,19,4,8,31,28,50,39,62,49,61,0,0,-9,33,-22,-34,-47,-36,-69,-25,-17,-10,-8,0,-1,33,-10,0,0,34,37,23,22,304,333,326,154,154,145,152,97,97,97,97,86,93,14,14,0,70,0,0,0,65,70,86,86,166,154,159,160,270,26,23,0,264,88,93,90,79,79,195,0,226,207,497,0,0,0,0,0,0,0,0]} 1. d4 {[%emt 0:00:00]} Nf6 {[%emt 0:00:28]} 2. Nf3 {[%emt 0:00:00]} g6 {[%emt 0:00:14]} 3. Bf4 {[%emt 0:02:08]} Bg7 {[%emt 0:00:25]} 4. e3 {[%emt 0:00:00]} O-O {[%emt 0:00:33]} 5. h3 {[%emt 0:00:53]} d6 {[%emt 0:01:14]} 6. Nbd2 {[%emt 0:01:31]} Nbd7 {[%emt 0:00:48] 6...b6 is the hot move.} 7. Bc4 {[%emt 0:01:24]} Qe8 {[%emt 0:08:23]} 8. Bh2 {[%emt 0:02:28] [#] A48: 1 d4 Nf6 2 Nf3 g6: Torre, London and Colle Systems.} a6 $146 {[%emt 0:07:15]} ({Predecessor:} 8... e5 9. dxe5 dxe5 10. e4 Nc5 11. Qe2 Nh5 12. O-O Nf4 13. Bxf4 exf4 14. c3 Be6 15. Rfe1 Rd8 16. b4 Na4 17. Nd4 Nxc3 {0-1 (17) Prohorov,O (2086)-Gaboyan,S (2254) Chess.com INT 2022}) 9. a4 {[%emt 0:01:58]} b6 {[%emt 0:02:42]} 10. c3 {[%emt 0:03:28]} Bb7 {[%emt 0:01:52]} 11. Qb3 {[%emt 0:03:02]} e5 {[%emt 0:08:48]} 12. O-O {[%emt 0:04:28]} Qe7 {[%emt 0:01:52]} 13. Rfd1 {[%emt 0:02:02]} h6 {[%emt 0:06:14]} 14. Rac1 {[%emt 0:03:58]} Rae8 {[%emt 0:03:04]} 15. Qa2 {[%emt 0:07:48]} e4 {[%emt 0:06:29]} 16. Ne1 {[%emt 0:00:16]} d5 {[%emt 0:01:24]} 17. Bf1 {[%emt 0:00:19]} c5 {[%emt 0:02:35]} 18. Qa3 {[%emt 0:02:22]} Qe6 {[%emt 0:03:46]} 19. c4 {[%emt 0:10:03]} Rc8 {[%emt 0:04:35]} 20. cxd5 {[%emt 0:00:52]} (20. Nc2 $14) 20... Nxd5 $11 {[%emt 0:01:28]} 21. dxc5 {[%emt 0:05:22]} Rxc5 {[%emt 0:04:14]} 22. Nb3 {[%emt 0:01:22]} (22. Nc4 $14) 22... Rxc1 {[%emt 0:01:46]} 23. Nxc1 {[%emt 0:01:33][%cal Bb3c1,Bc1e2,Be2d4][%mdl 32]} Rc8 {[%emt 0:05:08] Against Bc4} 24. Ne2 Ne5 {[%emt 0:04:27]} 25. Nd4 {[%emt 0:01:09]} Qe8 {[%emt 0:00:20]} 26. Qb3 Kh7 {[%emt 0:09:21]} 27. Nec2 Rd8 {[%emt 0:11:18]} (27... Nd3 {is more complex.} 28. Bxd3 exd3 29. Rxd3 Nb4) 28. Na3 {[%emt 0:02:25]} Nc6 {[%emt 0:03:49] Hoping for ...Nxd4.} (28... Nd3 {with more complications.} 29. Bxd3 exd3 30. Qxd3 Qxa4 31. Nc4 Bxd4 32. Qxd4 Rc8) 29. Nac2 {[%emt 0:06:31]} Nxd4 {[%emt 0:01:27]} 30. Nxd4 {[%emt 0:01:28]} Qe7 {[%emt 0:01:16]} 31. Bc4 {[%emt 0:01:40]} Be5 $2 {[%emt 0:01:06][%mdl 8192]} (31... Nb4 $11 {and Black stays safe.}) 32. Bxe5 $18 {[%emt 0:02:25]} Qxe5 {[%emt 0:01:38] [#]} 33. Bxd5 {[%emt 0:01:17]} (33. Bxa6 $1 $18 {[%mdl 512] and White stays clearly on top.} Ba8 34. Bc4) 33... Bxd5 $16 {[%emt 0:00:51]} 34. Qxb6 {[%emt 0:01:02]} Rb8 {[%emt 0:00:00]} 35. Nc6 {[%emt 0:04:18] White is more active.} ({White should try} 35. Qxa6 {Qe2 is the strong threat.} Rxb2 36. a5) 35... Bxc6 {[%emt 0:00:00]} 36. Qxc6 {[%emt 0:00:13]} Rxb2 {[%emt 0:00:00]} 37. Qxa6 {[%emt 0:00:51][%mdl 4096] Endgame KQR-KQR} Qf5 {[%emt 0:00:00]} 38. Qf1 {[%emt 0:00:58]} ({Better is} 38. Rf1 $1 $16) 38... Qf6 $11 {[%emt 0:00:00]} 39. Rd4 {[%emt 0:01:55]} Qb6 {[%emt 0:00:00]} (39... Ra2 $1 $11) 40. Kh2 {[%emt 0:02:04]} (40. Rxe4 $2 Rb1 41. Rd4 Rxf1+ 42. Kxf1 Qc6 $19) (40. a5 $14 Qxa5 41. Rxe4) 40... Qf6 {[%emt 0:00:00]} 41. Kg1 {[%emt 0:31:04]} (41. Rxe4 $11 Rxf2 42. Qe1) 41... Qb6 $14 {[%emt 0:28:05]} 42. g3 {[%emt 0:00:32]} ({Avoid the trap} 42. Rxe4 $2 Rb1 43. Rd4 Rxf1+ 44. Kxf1 Qc6 $19) 42... Rb1 {[%emt 0:00:00]} 43. Rd1 {[%emt 0:00:00]} Rb2 {[%emt 0:00:00] [#]} (43... Rb4 $16) 44. Qc4 $1 $18 {[%emt 0:00:00][%csl LRe4,LRf7]} Qf6 {[%emt 0:00:00] [#]} 45. Rf1 {[%emt 0:00:00]} Qf5 {[%emt 0:00:00]} (45... Kg7 $16 46. Qxe4 Ra2) 46. Qd4 $2 {[%emt 0:00:00]} (46. a5 $1 $18) 46... Ra2 $11 {[%emt 0:00:00]} 47. Qc4 $2 {[%emt 0:00:00]} (47. h4 $11) 47... Rb2 $1 $18 {[%emt 0:00:00]} 48. Qc3 $2 {[%emt 0:00:00]} (48. a5 $1 $18 {[%cal Ra5a6] and the rest is easy.}) 48... Ra2 $16 {[%emt 0:00:00]} 49. Qb3 {[%emt 0:00:00]} Rd2 {[%emt 0:00:00]} 50. a5 {[%emt 0:00:00] aiming for a6.} Rd7 {[%emt 0:00:00]} (50... Rd5 $16) 51. Qb6 $2 {[%emt 0:00:00]} (51. Qa2 $18) 51... h5 $2 {[%emt 0:00:00]} ({Much less strong is} 51... Qxh3 52. Qf6 $14) (51... Rd5 $1 $11 {and Black is okay.}) 52. a6 $18 {[%emt 0:00:00] Black must now prevent a7.} h4 $2 {[%emt 0:00:00]} (52... Qxh3 {was called for.} 53. Qf6 (53. a7 h4 $11) 53... Qe6 54. Qxe6 fxe6) 53. a7 $2 {[%emt 0:00:00]} (53. g4 $18 Qe6 54. Qxe6 fxe6 55. Rb1) 53... Qxh3 $11 {[%emt 0:00:43] The position is equal.} 54. Qb8 {[%emt 0:00:00]} hxg3 {[%emt 0:01:19]} 55. fxg3 {[%emt 0:00:00]} Rxa7 {[%emt 0:00:15]} 56. Qxa7 {[%emt 0:00:00]} Qxg3+ {[%emt 0:00:09] Weighted Error Value: White=0.40/Black=0.33} 1/2-1/2

[Event "44th Chess Olympiad Open 2022"]
[Site "Chennai"]
[Date "2022.07.30"]
[Round "2.51"]
[White "Eiti, Bashir"]
[Black "Al Ibrahim, Abdulrahman"]
[Result "1-0"]
[ECO "D02"]
[WhiteElo "2337"]
[BlackElo "1822"]
[Annotator "TA"]
[PlyCount "61"]
[EventDate "2022.07.29"]
[EventType "team-tourn"]
[EventCountry "IND"]
[SourceTitle "playchess.com"]
[Source "ChessBase"]
[SourceQuality "1"]
[WhiteTeam "Syria"]
[BlackTeam "Kuwait"]
[WhiteTeamCountry "SYR"]
[BlackTeamCountry "KUW"]
[TimeControl "40/5400+30:1800+30"]

{[%evp 9,61,0,7,0,0,0,11,15,22,16,15,0,7,14,14,-2,19,-5,-12,-17,-24,-26,-25,-23,0,0,0,-21,0,0,0,-12,15,10,13,16,57,13,66,63,382,384,379,366,389,388,389,357,679,695,685,672,754,744]} 1. d4 {[%emt 0:00:06]} d5 {[%emt 0:00:07]} 2. Bf4 {[%emt 0:00:34]} Nf6 {[%emt 0:01:16]} 3. e3 {[%emt 0:00:07]} e6 {[%emt 0:01:44]} 4. Nf3 {[%emt 0:00:24]} c5 {[%emt 0:00:28]} 5. c3 {[%emt 0:00:06]} Bd6 {[%emt 0:00:50]} 6. Bb5+ {[%emt 0:15:19] D02: 1 d4 d5 2 Nf3 sidelines, including 2...Nf6 3 g3 and 2...Nf6 3 Bf4.} Nc6 {[%emt 0:06:09]} 7. Qa4 {[%emt 0:01:03]} Bxf4 {[%emt 0:13:55]} 8. exf4 {[%emt 0:01:13] The position is equal.} Qb6 {[%emt 0:06:49]} 9. dxc5 {[%emt 0:03:29]} Qxc5 {[%emt 0:03:44]} 10. Nbd2 {[%emt 0:01:30]} Bd7 {[%emt 0:06:41]} 11. O-O {[%emt 0:01:58]} O-O {[%emt 0:16:20] [#]} 12. Rad1 $146 {[%emt 0:06:24]} ({Predecessor:} 12. Bxc6 bxc6 13. Qd4 Qe7 14. b4 c5 15. bxc5 Rfc8 16. Nb3 a5 17. Rfc1 a4 18. Nbd2 Qxc5 {0-1 (49) Seirawan,Y (2635)-Alburt,L (2530) Jacksonville 1990}) 12... Rfd8 {[%emt 0:03:34]} 13. Bxc6 {[%emt 0:09:11]} bxc6 {[%emt 0:07:14]} 14. Ne5 {[%emt 0:10:48]} Qb6 {[%emt 0:01:01]} 15. Qa3 {[%emt 0:05:56]} c5 {[%emt 0:01:05]} 16. c4 {[%emt 0:01:19]} a5 {[%emt 0:08:35]} 17. Nb3 {[%emt 0:04:32]} Be8 {[%emt 0:03:54]} 18. Rc1 {[%emt 0:11:43]} Ne4 {[%emt 0:04:45] [#] Threatens to win with ...a4.} 19. cxd5 {[%emt 0:07:09]} Rxd5 {[%emt 0:00:21]} 20. Nc4 {[%emt 0:01:03]} Qb5 {[%emt 0:03:53]} 21. Rfe1 {[%emt 0:01:56]} Nf6 {[%emt 0:01:39]} 22. Ne3 {[%emt 0:00:33] Pair of Knights!} ({Of course not} 22. Nbxa5 Rd4 23. Qh3 (23. Qc3 Nd5 $17) 23... Rxa5 24. Nxa5 Qxa5 $17) 22... Rdd8 {[%emt 0:03:33]} 23. Qxc5 {[%emt 0:02:21]} Qa4 {[%emt 0:00:39]} ({Black should play} 23... a4 $11 24. Qxb5 Bxb5) 24. Qc4 $1 $36 {[%emt 0:05:22][%mdl 2048] White has good play. White is more active.} Qxa2 $2 {[%emt 0:02:03][%mdl 8192] [#] This costs Black the game.} (24... Qxc4 $14 25. Nxc4 a4) 25. Ra1 $1 $18 {[%emt 0:00:19]} Qxb2 {[%emt 0:00:08] aiming for ...a4.} 26. Reb1 {[%emt 0:00:26]} Bb5 {[%emt 0:02:00]} 27. Qxb5 {[%emt 0:00:37]} ({Don't play} 27. Rxb2 Bxc4 28. Nxc4 a4 $18) 27... Qc3 {[%emt 0:00:04]} 28. Rc1 {[%emt 0:01:18][%cal Bb1c1,Bc1d1,Bd1d2][%mdl 32]} Qb2 {[%emt 0:00:47]} (28... Qb4 29. Rxa5 Qxf4) 29. Nd1 {[%emt 0:02:46] White is clearly winning.} Rxd1+ {[%emt 0:00:29]} 30. Rxd1 {[%emt 0:00:05]} Ng4 {[%emt 0:00:23]} 31. Rd2 {[%emt 0:00:29] Weighted Error Value: White=0.06 (flawless) /Black=0.55} 1-0

[Event "44th Chess Olympiad Open 2022"]
[Site "Chennai"]
[Date "2022.07.30"]
[Round "2.51"]
[White "Al-Hajiri, Bader"]
[Black "Chekh Adm Khedr, Aram"]
[Result "0-1"]
[ECO "D20"]
[WhiteElo "2011"]
[BlackElo "2147"]
[Annotator "TA"]
[PlyCount "72"]
[EventDate "2022.07.29"]
[EventType "team-tourn"]
[EventCountry "IND"]
[SourceTitle "playchess.com"]
[Source "ChessBase"]
[SourceQuality "1"]
[WhiteTeam "Kuwait"]
[BlackTeam "Syria"]
[WhiteTeamCountry "KUW"]
[BlackTeamCountry "SYR"]
[TimeControl "40/5400+30:1800+30"]

{[%evp 9,72,49,67,46,48,49,62,76,84,86,90,84,80,68,95,90,89,65,87,62,69,63,59,52,42,4,54,0,0,2,175,133,145,-55,160,171,277,277,256,277,259,154,128,156,137,-153,-181,-173,-148,-156,-45,-310,-371,-361,-340,-648,-650,-641,-638,-633,-633,-629,-625,-572,-591]} 1. d4 {[%emt 0:00:07]} d5 {[%emt 0:00:04]} 2. c4 {[%emt 0:00:12]} dxc4 {[%emt 0:00:05]} 3. e4 {[%emt 0:00:45]} Nf6 {[%emt 0:03:29]} 4. f3 {[%emt 0:21:17]} g6 {[%emt 0:20:04]} 5. Bxc4 {[%emt 0:04:46]} Bg7 {[%emt 0:01:26][%cal Oc7c5]} 6. Ne2 {[%emt 0:00:53] D20: Queen's Gambit Accepted: 3 e3 and 3 e4.} O-O {[%emt 0:00:06][%cal Oc7c5]} 7. Be3 {[%emt 0:00:29] [#]} a6 $146 {[%emt 0:03:54][%cal Oc7c5]} ({Predecessor:} 7... c5 8. Nbc3 cxd4 9. Nxd4 a6 10. Rc1 e5 11. Nde2 b5 12. Bb3 Bb7 {1-0 (50) Southam,D (2193)-Chernik,D (1905) Toronto 2013}) 8. a3 {[%emt 0:01:51] White is slightly better.} b5 {[%emt 0:10:03]} 9. Ba2 {[%emt 0:01:09]} Bb7 {[%emt 0:00:08][%cal Oc7c5]} 10. Nbc3 {[%emt 0:00:38]} e6 {[%emt 0:02:15]} 11. Qd2 {[%emt 0:00:40]} Nbd7 {[%emt 0:01:23]} 12. O-O {[%emt 0:05:25]} Qe7 {[%emt 0:00:44]} 13. Rac1 {[%emt 0:02:17]} Rac8 {[%emt 0:02:03]} 14. Bg5 {[%emt 0:05:35]} e5 {[%emt 0:01:54]} 15. Nd5 {[%emt 0:01:21]} Bxd5 {[%emt 0:04:14]} 16. exd5 {[%emt 0:02:30]} Rfe8 {[%emt 0:16:07]} 17. Rfe1 {[%emt 0:03:47]} Qf8 {[%emt 0:03:32]} 18. dxe5 {[%emt 0:07:32]} ({Better is} 18. Rc6 $14) 18... Nxe5 $11 {[%emt 0:00:54]} 19. Nd4 {[%emt 0:00:13]} Nfd7 $2 {[%emt 0:03:38] [#]} (19... Rcd8 $11 {and Black has nothing to worry.}) 20. Ne6 $1 $18 {[%emt 0:01:55][%mdl 512]} Qd6 {[%emt 0:01:32]} (20... fxe6 $2 21. dxe6 Kh8 22. exd7 Nxd7 23. Qxd7 $18) 21. f4 $2 {[%emt 0:12:23]} (21. Nxg7 $16 Kxg7 22. Bf4) 21... Qb6+ $2 {[%emt 0:01:03]} (21... Rxe6 $15 {stays ahead.} 22. fxe5 Rxe5) 22. Kh1 $16 {[%emt 0:01:24]} Ng4 {[%emt 0:03:09]} (22... Nc4 {keeps fighting.} 23. Bxc4 bxc4) 23. h3 $1 $18 {[%emt 0:01:40]} Nf2+ {[%emt 0:02:23]} 24. Kh2 {[%emt 0:00:07] Hoping for Rc6.} fxe6 {[%emt 0:02:08]} 25. dxe6 {[%emt 0:01:21]} (25. Bh4 $18 Nf6 26. Bxf2) 25... Nf6 $16 {[%emt 0:00:13]} 26. e7+ {[%emt 0:05:06]} Kh8 {[%emt 0:00:04] [#] And now ...N2e4 would win.} 27. Bf7 $2 {[%emt 0:00:04][%mdl 8192]} (27. Bb1 $1 $16) 27... N2e4 $17 {[%emt 0:00:29]} 28. Rxe4 {[%emt 0:01:24]} Nxe4 {[%emt 0:00:06] The board is on fire.} 29. Qd7 {[%emt 0:00:06] [#]} Nf6 {[%emt 0:06:16]} ({Black should try} 29... Qb8 $1 $17 30. Rd1 Nd6 31. Bxe8 Rxe8) 30. Bxe8 $4 {[%emt 0:01:07][%mdl 8192]} Nxd7 $19 {[%emt 0:00:24]} 31. Bxd7 {[%emt 0:00:40]} Rb8 {[%emt 0:00:29]} (31... Bxb2 $2 32. Bxc8 Qe3 33. Rd1 $18) 32. Rd1 {[%emt 0:01:42] Against Qd6} (32. Re1 h6 33. e8=Q+ Rxe8 34. Rxe8+ Kh7 35. Bh4) 32... Bf6 {[%emt 0:00:27] aiming for ...Bxg5. Black is clearly winning.} 33. e8=Q+ {[%emt 0:02:37]} Rxe8 {[%emt 0:00:07]} 34. Bxe8 {[%emt 0:00:08]} Bxg5 {[%emt 0:00:13]} 35. fxg5 {[%emt 0:00:05]} Qe3 {[%emt 0:00:06]} 36. Bc6 {[%emt 0:02:03]} Qxg5 {[%emt 0:00:07] Weighted Error Value: White=0.61/Black=0.32} 0-1

[Event "44th Chess Olympiad Open 2022"]
[Site "Chennai"]
[Date "2022.07.30"]
[Round "2.51"]
[White "Alhejab, Meshal"]
[Black "Koniahli, Malek."]
[Result "1-0"]
[ECO "B31"]
[WhiteElo "1732"]
[BlackElo "2238"]
[Annotator "TA"]
[PlyCount "150"]
[EventDate "2022.07.29"]
[EventType "team-tourn"]
[EventCountry "IND"]
[SourceTitle "playchess.com"]
[Source "ChessBase"]
[SourceQuality "1"]
[WhiteTeam "Kuwait"]
[BlackTeam "Syria"]
[WhiteTeamCountry "KUW"]
[BlackTeamCountry "SYR"]
[TimeControl "40/5400+30:1800+30"]

{[%evp 10,150,35,15,29,25,25,25,47,34,60,50,50,50,58,47,52,44,41,43,47,52,50,51,57,18,25,0,0,0,0,0,0,0,31,0,7,5,14,0,74,0,0,0,0,-16,0,0,-9,-7,0,0,0,-8,60,45,31,64,118,71,69,95,117,107,112,98,104,100,100,104,218,175,208,188,229,215,255,222,258,247,281,312,322,329,329,296,329,307,299,308,668,612,524,222,222,0,460,329,559,329,325,325,306,300,293,273,263,275,436,401,725,402,359,259,249,245,359,182,144,0,341,325,695,631,1356,1354,1251,1097,1118,1061,948,890,1393,1389,1897,1841,5746,1865,2030,959,975,925,839]} 1. e4 {[%emt 0:00:05]} c5 {[%emt 0:00:16]} 2. Nf3 {[%emt 0:00:17]} Nc6 {[%emt 0:00:07]} 3. Bb5 {[%emt 0:00:05]} g6 {[%emt 0:00:26]} 4. Bxc6 {[%emt 0:00:08]} dxc6 {[%emt 0:00:02]} 5. d3 {[%emt 0:00:44]} Bg7 {[%emt 0:00:06]} 6. Nc3 {[%emt 0:00:49]} c4 {[%emt 0:00:24] B31: Sicilian: 2...Nc6 3 Bb5 g6.} 7. O-O {[%emt 0:05:57]} cxd3 {[%emt 0:00:42]} 8. cxd3 {[%emt 0:00:03]} e5 {[%emt 0:03:33] [#] White has an edge.} 9. h3 $146 {[%emt 0:00:52]} ({Predecessor:} 9. Bg5 Ne7 10. Qd2 Bg4 11. Bh6 Bxh6 12. Qxh6 Bxf3 13. gxf3 Ng8 14. Qe3 Qb6 15. Rac1 {½-½ (40) Grill,R (2134)-Bostl,F (2199) Czech Republic 2011}) 9... f6 {[%emt 0:11:31]} 10. d4 {[%emt 0:05:18]} exd4 $1 {[%emt 0:00:32]} 11. Nxd4 {[%emt 0:00:59]} Nh6 $1 {[%emt 0:05:12]} 12. Be3 {[%emt 0:04:29]} Nf7 {[%emt 0:01:07]} 13. f4 {[%emt 0:04:07]} O-O {[%emt 0:02:24]} 14. Qc2 {[%emt 0:07:14]} Qe7 {[%emt 0:02:07]} 15. Rfe1 {[%emt 0:03:18]} Re8 {[%emt 0:01:02]} 16. Rad1 {[%emt 0:02:21]} Bd7 {[%emt 0:07:56]} 17. a4 {[%emt 0:03:13]} Rad8 {[%emt 0:06:28]} 18. Bf2 {[%emt 0:05:41]} Bh6 {[%emt 0:02:16]} 19. Bg3 {[%emt 0:10:38]} Bc8 {[%emt 0:05:00]} 20. Kh1 {[%emt 0:03:48]} Qc5 {[%emt 0:11:01]} 21. Nf3 {[%emt 0:17:06]} Qh5 {[%emt 0:02:05]} 22. Nh2 {[%emt 0:07:07]} Be6 {[%emt 0:01:13]} 23. Qf2 {[%emt 0:01:51]} b6 {[%emt 0:02:33]} 24. Bh4 {[%emt 0:02:44]} Bg7 {[%emt 0:03:43]} (24... Rxd1 $11 25. Rxd1 Bg7) 25. g4 {[%emt 0:03:58]} (25. Rxd8 $1 $16 Nxd8 26. f5) 25... Qc5 {[%emt 0:01:20]} 26. Qxc5 {[%emt 0:01:20]} bxc5 {[%emt 0:00:03]} 27. Nf3 {[%emt 0:02:08]} Bc4 {[%emt 0:13:39]} 28. Kg2 {[%emt 0:02:19]} Rb8 {[%emt 0:04:03]} 29. Rd2 {[%emt 0:01:08]} Red8 {[%emt 0:01:22] White must now prevent ...Rxd2+.} 30. Red1 {[%emt 0:01:16]} Re8 {[%emt 0:05:12]} 31. Rc1 {[%emt 0:01:42]} h6 {[%emt 0:00:47]} (31... Bh6 $11 32. Bg3 Rb4) 32. Bf2 $14 {[%emt 0:01:03]} Bf8 {[%emt 0:00:13]} 33. e5 {[%emt 0:01:18]} f5 {[%emt 0:02:04] Inhibits Ne4.} (33... fxe5 $14 34. Ne4 Bd5 35. Nf6+ Kg7 36. Nxe8+ (36. Nxd5 cxd5 37. Bxc5 Bxc5 $11) 36... Rxe8) 34. gxf5 {[%emt 0:00:51]} (34. Nh4 $142 $1) 34... gxf5 $16 {[%emt 0:00:00]} 35. Nh4 {[%emt 0:00:34]} Be6 {[%emt 0:05:21]} 36. Ng6 {[%emt 0:00:52]} a6 {[%emt 0:00:13]} 37. Nxf8 {[%emt 0:00:41] White is more active.} Rxf8 {[%emt 0:00:02]} 38. Bxc5 {[%emt 0:00:17]} Rfd8 {[%emt 0:00:01]} 39. Rcd1 {[%emt 0:00:55]} Re8 {[%emt 0:01:54]} (39... Bb3 $16) 40. Kf3 {[%emt 0:00:34]} Kh7 {[%emt 0:00:33]} 41. a5 {[%emt 0:30:34]} Rg8 {[%emt 0:01:41]} 42. b4 {[%emt 0:00:29]} Rg6 {[%emt 0:00:42]} 43. Rg2 {[%emt 0:00:25]} Rxg2 {[%emt 0:00:28]} 44. Kxg2 {[%emt 0:00:02]} Rg8+ {[%emt 0:00:00]} 45. Kf2 {[%emt 0:00:51]} Rd8 {[%emt 0:00:00]} 46. Rxd8 {[%emt 0:00:00]} Nxd8 $18 {[%emt 0:00:00][%mdl 4096] Endgame KBN-KBN} 47. Bb6 {[%emt 0:00:00]} Nb7 {[%emt 0:00:00]} 48. Ne2 {[%emt 0:00:00] aiming for Nd4.} Kg6 {[%emt 0:00:00]} 49. Nd4 {[%emt 0:00:00]} Bd5 {[%emt 0:00:00]} (49... Bd7 50. Ke3 Kf7) 50. Kg3 {[%emt 0:00:00]} Be4 {[%emt 0:00:00]} 51. Kh4 {[%emt 0:00:00]} (51. Bc5 $142 {Strongly threatening Kh4.} h5 52. Kh4) 51... Bd5 {[%emt 0:00:00]} 52. Kg3 $2 {[%emt 0:02:11]} (52. Ne2) 52... Be4 $1 {[%emt 0:00:00]} 53. Ne6 {[%emt 0:00:00]} Bd5 $2 {[%emt 0:00:00]} (53... Bd3 54. Kf3 (54. Nd4 Be4 $18) 54... h5) 54. Nc7 {[%emt 0:00:00] Hoping for b5.} Bc4 {[%emt 0:00:00] Prevents b5.} 55. Kh4 {[%emt 0:00:00]} Be2 {[%emt 0:00:00]} 56. Ne6 {[%emt 0:00:00] Threatens to win with Nd4.} Bc4 {[%emt 0:00:00]} 57. Nf8+ {[%emt 0:00:00]} ({Much less strong is} 57. Nd4 $6 Bd5 58. Kg3 $18) 57... Kf7 {[%emt 0:00:00]} 58. Nd7 {[%emt 0:02:34]} Kg6 {[%emt 0:00:00]} (58... Bb5 {was worth a try.} 59. Nb8 Kg7) 59. e6 {[%emt 0:03:10]} Bb5 {[%emt 0:00:00]} (59... Bd5 $142 60. e7 Nd6) 60. Bc7 {[%emt 0:01:39]} Ba4 {[%emt 0:00:00]} 61. e7 {[%emt 0:01:17]} Kf7 {[%emt 0:00:00]} 62. Bd8 {[%emt 0:00:39] Ne5+ is the strong threat.} Nd6 {[%emt 0:00:00]} (62... c5 {was called for.}) 63. Nf6 {[%emt 0:00:39]} Bd1 {[%emt 0:00:00] [#]} 64. Nd7 $2 {[%emt 0:00:33]} (64. Kg3 $1 $16) 64... Ba4 $1 {[%emt 0:00:45]} 65. Kh5 {[%emt 0:00:27]} Ne4 $2 {[%emt 0:00:00]} (65... Kg7 66. Bc7 Bd1+ 67. Kh4 Ne8) 66. Kxh6 {[%emt 0:00:24] White is clearly winning.} Nf2 {[%emt 0:00:03]} 67. Nc5 {[%emt 0:00:43]} Bb5 {[%emt 0:00:11]} 68. Nb7 {[%emt 0:00:26] White threatens Nd6+ and mate.} Ne4 {[%emt 0:00:27] Prevents Nd6+.} 69. h4 {[%emt 0:00:26][%cal Bh3h4,Bh4h5][%mdl 32]} Be2 {[%emt 0:00:30]} 70. Nc5 {[%emt 0:00:34]} Bb5 {[%emt 0:01:44]} 71. h5 {[%emt 0:00:24]} Be2 {[%emt 0:00:08] [#]} 72. Ne6 $1 {[%emt 0:00:32][%mdl 512]} Nf6 {[%emt 0:01:07]} (72... c5 73. bxc5) 73. Nc7 {[%emt 0:00:38]} (73. Ng5+ $142 Ke8 74. Kg6 Nxh5 75. Ne6 Nxf4+ 76. Nxf4) 73... Bd3 {[%emt 0:01:40]} 74. Kg5 {[%emt 0:00:23]} (74. e8=R $142 Nxe8 75. Nxe8 Kxe8 {[#]} 76. Kg6 $1 Kxd8 77. h6) 74... Nh7+ {[%emt 0:00:13]} 75. Kh4 {[%emt 0:00:07]} Nf6 {[%emt 0:00:01] Inhibits e8Q+.  Weighted Error Value: White=0.28 (precise) /Black=0.26 (precise)} 1-0